fUSD/lending_fUSD_20240227
["ID","MTS","AMOUNT","RATE_DAILY","PERIOD"]
[315487637,1709075443962,-23.34581841,0.00023835,2]
[315487643,1709075445872,-523.23301761,0.00023834,2]
[315487644,1709075445882,-476.65418159,0.00023835,2]
[315487645,1709075445891,-516.52683334,0.00023835,2]
[315487646,1709075446070,-500.0,0.00023835,2]
[315487647,1709075446080,-184.12824066,0.00023835,2]
[315487648,1709075446090,-505.9961217,0.00023835,2]
[315487649,1709075446100,-500.0,0.00023835,2]
[315487650,1709075446109,-500.0,0.00023835,2]
[315487651,1709075446118,-509.85724053,0.00023835,2]
[315487652,1709075446127,-500.0,0.00023835,2]
[315487653,1709075446137,-500.0,0.00023835,2]
[315487654,1709075446146,-508.96907304,0.00023835,2]
[315487655,1709075446156,-500.0,0.00023835,2]
[315487656,1709075446165,-500.0,0.00023835,2]
[315487658,1709075446175,-342.61198265,0.00023835,2]
[315487659,1709075446184,-1014.52,0.00023835,2]
[315487660,1709075446194,-1014.52,0.00023835,2]
[315487661,1709075446203,-1014.52,0.00023835,2]
[315487662,1709075446213,-1014.52,0.00023835,2]
[315487663,1709075446223,-505.23864248,0.00023835,2]
[315487665,1709075446243,-1014.52,0.00023835,2]
[315487666,1709075446264,-500.0,0.00023835,2]
[315487668,1709075446273,-298.52743138,0.00023835,2]
[315487670,1709075446287,-201.47256862,0.00023835,2]
[315487671,1709075446297,-499.39314712,0.00023835,2]
[315487672,1709075446306,-500.0,0.00023835,2]
[315487673,1709075446316,-500.0,0.00023835,2]
[315487674,1709075446325,-500.0,0.00023835,2]
[315487675,1709075446335,-500.0,0.00023835,2]
[315487676,1709075446345,-500.0,0.00023835,2]
[315487677,1709075446354,-500.0,0.00023835,2]
[315487678,1709075446364,-500.0,0.00023835,2]
[315487679,1709075446373,-500.0,0.00023835,2]
[315487680,1709075446382,-500.0,0.00023835,2]
[315487681,1709075446391,-500.0,0.00023835,2]
[315487682,1709075446401,-500.0,0.00023835,2]
[315487683,1709075446410,-508.48635901,0.00023835,2]
[315487684,1709075446419,-500.0,0.00023835,2]
[315487685,1709075446429,-512.39839583,0.00023835,2]
[315487686,1709075446438,-503.10710781,0.00023835,2]
[315487687,1709075446447,-507.98318771,0.00023835,2]
[315487688,1709075446456,-280.09884266,0.00023835,2]
[315487689,1709075446466,-500.0,0.00023835,2]
[315487690,1709075446475,-500.0,0.00023835,2]
[315487691,1709075446484,-500.0,0.00023835,2]
[315487692,1709075446493,-500.0,0.00023835,2]
[315487693,1709075446502,-500.0,0.00023835,2]
[315487694,1709075446511,-500.0,0.00023835,2]
[315487695,1709075446520,-500.0,0.00023835,2]
[315487696,1709075446529,-105.98176642,0.00023835,2]
[315487697,1709075446542,-394.01823358,0.00023835,2]
[315487698,1709075446552,-500.0,0.00023835,2]
[315487699,1709075446561,-355.98176642,0.00023835,2]
[315487700,1709075446577,-144.01823358,0.00023835,2]
[315487701,1709075446586,-500.0,0.00023835,2]
[315487702,1709075446595,-427.51355604,0.00023835,2]
[315487703,1709075446605,-500.0,0.00023835,2]
[315487704,1709075446614,-500.0,0.00023835,2]
[315487705,1709075446623,-439.5753613,0.00023835,2]
[315487706,1709075446635,-60.4246387,0.00023835,2]
[315487707,1709075446644,-500.0,0.00023835,2]
[315487708,1709075446656,-500.0,0.00023835,2]
[315487709,1709075446666,-500.0,0.00023835,2]
[315487710,1709075446676,-535.3227798,0.00023835,2]
[315487711,1709075446685,-500.0,0.00023835,2]
[315487712,1709075446695,-511.2509071,0.00023835,2]
[315487713,1709075446704,-500.0,0.00023835,2]
[315487714,1709075446714,-500.0,0.00023835,2]
[315487715,1709075446723,-500.0,0.00023835,2]
[315487716,1709075446733,-500.0,0.00023835,2]
[315487717,1709075446742,-500.0,0.00023835,2]
[315487718,1709075446751,-500.0,0.00023835,2]
[315487719,1709075446761,-500.0,0.00023835,2]
[315487720,1709075446770,-513.116768,0.00023835,2]
[315487721,1709075446779,-503.99008617,0.00023835,2]
[315487722,1709075446789,-500.0,0.00023835,2]
[315487723,1709075446798,-500.0,0.00023835,2]
[315487724,1709075446807,-517.70779906,0.00023835,2]
[315487725,1709075446816,-500.0,0.00023835,2]
[315487726,1709075446825,-500.0,0.00023835,2]
[315487727,1709075446834,-500.0,0.00023835,2]
[315487728,1709075446843,-500.0,0.00023835,2]
[315487729,1709075446852,-500.0,0.00023835,2]
[315487730,1709075446861,-500.0,0.00023835,2]
[315487731,1709075446870,-500.0,0.00023835,2]
[315487732,1709075446879,-512.80418189,0.00023835,2]
[315487733,1709075446888,-500.0,0.00023835,2]
[315487734,1709075446898,-503.4828305,0.00023835,2]
[315487735,1709075446908,-224.89174088,0.00023835,2]
[315487736,1709075446917,-516.23555513,0.00023835,2]
[315487737,1709075446926,-500.0,0.00023835,2]
[315487738,1709075446936,-502.89,0.00023835,2]
[315487739,1709075446945,-502.89,0.00023835,2]
[315487740,1709075446954,-500.0,0.00023835,2]
[315487741,1709075446964,-502.89,0.00023835,2]
[315487742,1709075446974,-500.0,0.00023835,2]
[315487743,1709075446983,-500.0,0.00023835,2]
[315487744,1709075446994,-502.89,0.00023835,2]
[315487745,1709075447004,-500.0,0.00023835,2]
[315487746,1709075447013,-500.0,0.00023835,2]
[315487747,1709075447022,-500.0,0.00023835,2]
[315487748,1709075447032,-500.0,0.00023835,2]
[315487749,1709075447041,-500.0,0.00023835,2]
[315487750,1709075447050,-500.0,0.00023835,2]
[315487751,1709075447059,-500.0,0.00023835,2]
[315487752,1709075447068,-500.0,0.00023835,2]
[315487753,1709075447078,-500.0,0.00023835,2]
[315487754,1709075447088,-500.0,0.00023835,2]
[315487755,1709075447097,-521.48802816,0.00023835,2]
[315487756,1709075447106,-500.0,0.00023835,2]
[315487757,1709075447115,-500.0,0.00023835,2]
[315487758,1709075447124,-500.0,0.00023835,2]
[315487759,1709075447134,-500.0,0.00023835,2]
[315487760,1709075447143,-507.67470476,0.00023835,2]
[315487761,1709075447153,-500.0,0.00023835,2]
[315487762,1709075447162,-500.0,0.00023835,2]
[315487763,1709075447171,-301.4182474,0.00023835,2]
[315487764,1709075447181,-502.89,0.00023835,2]
[315487765,1709075447190,-500.0,0.00023835,2]
[315487766,1709075447199,-508.18630144,0.00023835,2]
[315487767,1709075447209,-500.0,0.00023835,2]
[315487768,1709075447218,-500.0,0.00023835,2]
[315487769,1709075447228,-500.0,0.00023835,2]
[315487770,1709075447238,-500.0,0.00023835,2]
[315487771,1709075447248,-500.0,0.00023835,2]
[315487772,1709075447257,-500.0,0.00023835,2]
[315487773,1709075447266,-500.0,0.00023835,2]
[315487774,1709075447275,-500.0,0.00023835,2]
[315487775,1709075447285,-500.0,0.00023835,2]
[315487776,1709075447294,-500.0,0.00023835,2]
[315487777,1709075447303,-500.0,0.00023835,2]
[315487778,1709075447313,-500.0,0.00023835,2]
[315487779,1709075447322,-500.0,0.00023835,2]
[315487780,1709075447332,-500.0,0.00023835,2]
[315487781,1709075447342,-510.39814874,0.00023835,2]
[315487782,1709075447352,-308.22348423,0.00023835,2]
[315487783,1709075448002,156.0,0.00021237,2]
[315487784,1709075449484,987.46175254,0.00022941,7]
[315487785,1709075457482,162.309084,0.00022781,2]
[315487786,1709075462156,155.361107,0.00022781,2]
[315487787,1709075465457,183.344677,0.00022781,2]
[315487788,1709075481844,248.8996,0.0002294,2]
[315487789,1709075509451,491.0,0.00021682,2]
[315487790,1709075519198,6725.4429,0.00022596,2]
[315487791,1709075537127,2000.0,0.00022781,2]
[315487792,1709075538547,173.05,0.00020818,2]
[315487793,1709075606852,195.1,0.000215,2]
[315487794,1709075607059,195.1,0.0002293,2]
[315487795,1709075639952,157.84,0.00022688,2]
[315487796,1709075640020,27261.88206712,0.00020818,2]
[315487797,1709075642964,299.99,0.00022687,2]
[315487798,1709075644957,707.0,0.00023,2]
[315487799,1709075645417,707.0,0.00023,2]
[315487800,1709075656005,22718.23505594,0.00020818,2]
[315487801,1709075674014,22718.23505594,0.00020818,2]
[315487802,1709075692231,11836.20046414,0.00020818,2]
[315487803,1709075698833,250.0,0.00022692,2]
[315487804,1709075712013,11836.20046414,0.00020818,2]
[315487805,1709075728484,25857.21031369,0.00022973,2]
[315487806,1709075732025,11836.20046414,0.00020818,2]
[315487807,1709075734801,791.67,0.0002075,2]
[315487808,1709075749506,19629.01,0.00022659,2]
[315487809,1709075756397,11836.20046414,0.00020818,2]
[315487810,1709075776417,11836.20046414,0.00023,2]
[315487811,1709075783548,453.18233898,0.00021997,2]
[315487812,1709075793946,206.0,0.00022717,2]
[315487813,1709075794408,11836.20046414,0.00023,2]
[315487814,1709075808725,250.0,0.00022643,2]
[315487815,1709075814410,11836.20046414,0.00023,2]
[315487816,1709075828283,157.47,0.00022814,2]
[315487817,1709075828474,157.47,0.00022984,2]
[315487818,1709075834450,11836.20046414,0.00023,2]
[315487819,1709075839227,1140.96,0.00022605,2]
[315487820,1709075853616,6540.0,0.000219,2]
[315487821,1709075862578,11836.20046414,0.00023,2]
[315487822,1709075872194,178.39,0.00022626,2]
[315487823,1709075872480,-3166.41213149,0.00023012,2]
[315487824,1709075872508,-4728.68920609,0.00023013,2]
[315487825,1709075872535,-616.05201423,0.00023013,2]
[315487826,1709075872564,-791.67,0.00023014,2]
[315487827,1709075878578,11836.20046414,0.00023,2]
[315487828,1709075898601,11836.20046414,0.00023,2]
[315487829,1709075918598,1578.88707094,0.00023,2]
[315487830,1709075927774,500.0,0.00022611,2]
[315487831,1709075983401,157.49,0.00022595,2]
[315487832,1709075983604,157.49,0.00022821,2]
[315487833,1709076004725,205.0,0.00022717,2]
[315487834,1709076024985,2000.0,0.00022555,2]
[315487835,1709076074372,-616.05201423,0.00023046,2]
[315487836,1709076074407,-157.49,0.00023047,2]
[315487837,1709076074436,-4728.68920609,0.00023058,2]
[315487838,1709076074465,-795.4538,0.00023059,2]
[315487839,1709076074495,-155.361107,0.00023066,2]
[315487840,1709076075051,876.35582149,0.00022545,2]
[315487841,1709076075075,123.64417851,0.00022545,2]
[315487843,1709076243286,748.49,0.00020619,2]
[315487844,1709076243476,748.49,0.00022883,2]
[315487845,1709076244700,707.0,0.00023,2]
[315487846,1709076245137,707.0,0.00023,2]
[315487847,1709076261671,250.0,0.00022536,2]
[315487848,1709076270744,250.0,0.00022536,2]
[315487849,1709076291638,-616.05201423,0.00023153,2]
[315487850,1709076291660,-157.47,0.00023154,2]
[315487851,1709076291681,-4728.68920609,0.0002316,2]
[315487852,1709076291702,-162.309084,0.00023161,2]
[315487853,1709076291724,-183.344677,0.00023161,2]
[315487854,1709076291751,-157.49,0.00023273,2]
[315487855,1709076291774,-157.47,0.00023323,2]
[315487856,1709076291795,-155.361107,0.0002335,2]
[315487857,1709076291815,-522.45,0.0002335,2]
[315487858,1709076291837,-165.13,0.00023364,2]
[315487859,1709076291860,-151.0,0.00023413,2]
[315487860,1709076291881,-151.57180379,0.0002344,2]
[315487861,1709076291902,-300.0,0.00023449,2]
[315487862,1709076291922,-150.0,0.00023449,2]
[315487863,1709076291942,-300.0,0.00023449,2]
[315487864,1709076291964,-1857.21,0.0002345,2]
[315487865,1709076291987,-579.05,0.0002345,2]
[315487866,1709076292010,-151.57180369,0.00023485,2]
[315487867,1709076292030,-9999.99,0.00023485,2]
[315487868,1709076292051,-499.99,0.00023485,2]
[315487869,1709076292072,-150.99,0.00023485,2]
[315487870,1709076292093,-1128.07,0.00023485,2]
[315487872,1709076292112,-1737.16,0.00023485,2]
[315487873,1709076292133,-206.0,0.00023493,2]
[315487874,1709076292154,-157.47,0.00023493,2]
[315487875,1709076292405,-157.49,0.00023499,2]
[315487876,1709076292428,-5000.0,0.000235,2]
[315487877,1709076292451,-1778.31174543,0.000235,2]
[315487878,1709076292471,-2283.0,0.000235,2]
[315487879,1709076292492,-151.57180369,0.0002353,2]
[315487880,1709076292512,-1180.45,0.00023535,2]
[315487881,1709076292532,-567.0909,0.00023535,2]
[315487882,1709076292553,-162.309084,0.0002354,2]
[315487883,1709076292585,-183.344677,0.0002354,2]
[315487884,1709076292609,-151.57180369,0.00023575,2]
[315487885,1709076292630,-919.42,0.000236,2]
[315487886,1709076292653,-919.42,0.000236,2]
[315487887,1709076292673,-919.42,0.000236,2]
[315487888,1709076292695,-151.57180369,0.0002362,2]
[315487889,1709076292716,-613.567,0.00023622,2]
[315487890,1709076292737,-1258.0,0.00023622,2]
[315487891,1709076292757,-217.0,0.00023622,2]
[315487892,1709076292778,-1549.96992501,0.00023625,2]
[315487893,1709076292798,-835.73450788,0.00023633,2]
[315487894,1709076292819,-14038.7436,0.00023635,2]
[315487895,1709076292839,-208573.6273,0.00023635,2]
[315487896,1709076292861,-155.361107,0.00023635,2]
[315487897,1709076292882,-157.47,0.00023663,2]
[315487898,1709076292904,-151.57180369,0.00023665,2]
[315487899,1709076292928,-407.07,0.000237,2]
[315487900,1709076292952,-407.07,0.000237,2]
[315487901,1709076292973,-1837.48,0.000237,2]
[315487902,1709076292993,-407.07,0.000237,2]
[315487903,1709076293014,-919.42,0.000237,2]
[315487904,1709076293034,-150.0,0.000237,2]
[315487905,1709076293055,-150.0,0.000237,2]
[315487906,1709076293076,-1950.0,0.000237,2]
[315487907,1709076293096,-150.0,0.000237,2]
[315487908,1709076293117,-150.0,0.000237,2]
[315487909,1709076293138,-150.0,0.000237,2]
[315487910,1709076293159,-151.57180369,0.0002371,2]
[315487911,1709076293183,-157.49,0.00023725,2]
[315487912,1709076293205,-555.5555555,0.00023733,3]
[315487913,1709076293227,-555.5555555,0.00023733,3]
[315487914,1709076293248,-555.5555555,0.00023733,3]
[315487915,1709076293271,-555.5555555,0.00023733,3]
[315487916,1709076293296,-555.5555555,0.00023733,3]
[315487917,1709076293318,-555.5555555,0.00023733,3]
[315487918,1709076293339,-555.5555555,0.00023733,3]
[315487919,1709076293361,-555.5555555,0.00023733,3]
[315487920,1709076293387,-555.5555555,0.00023733,3]
[315487921,1709076293415,-555.5555555,0.00023733,3]
[315487922,1709076293438,-555.5555555,0.00023733,3]
[315487923,1709076293461,-555.5555555,0.00023733,3]
[315487924,1709076293483,-555.5555555,0.00023733,3]
[315487925,1709076293505,-555.5555555,0.00023733,3]
[315487926,1709076293527,-555.5555555,0.00023733,3]
[315487927,1709076293550,-555.5555555,0.00023733,3]
[315487928,1709076293571,-555.5555555,0.00023733,3]
[315487929,1709076293594,-555.5555555,0.00023734,3]
[315487930,1709076293616,-555.5555555,0.00023734,3]
[315487931,1709076293638,-555.5555555,0.00023734,3]
[315487932,1709076293660,-555.5555555,0.00023734,3]
[315487933,1709076293681,-555.5555555,0.00023734,3]
[315487934,1709076293703,-555.5555555,0.00023734,3]
[315487935,1709076293724,-555.5555555,0.00023734,3]
[315487936,1709076293746,-555.5555555,0.00023734,3]
[315487937,1709076293768,-555.5555555,0.00023734,3]
[315487938,1709076293790,-555.5555555,0.00023734,3]
[315487939,1709076293811,-555.5555555,0.00023734,3]
[315487940,1709076293832,-555.5555555,0.00023734,3]
[315487941,1709076293854,-555.5555555,0.00023734,3]
[315487942,1709076293875,-555.5555555,0.00023734,3]
[315487943,1709076293896,-555.5555555,0.00023734,3]
[315487944,1709076293917,-530.94192446,0.00023735,2]
[315487945,1709076293939,-151.98435015,0.00023735,2]
[315487946,1709076293959,-119863.0499,0.00023735,2]
[315487947,1709076293981,-151.57180369,0.00023755,2]
[315487948,1709076294002,-1150.2032463,0.00023786,2]
[315487949,1709076294023,-158.67407848,0.00023798,2]
[315487950,1709076294044,-161.39330706,0.00023798,2]
[315487951,1709076294067,-161.39330705,0.00023798,2]
[315487952,1709076294087,-161.39330705,0.00023798,2]
[315487953,1709076294109,-151.57180369,0.000238,2]
[315487954,1709076294129,-200.0,0.00023807,2]
[315487955,1709076294150,-800.0,0.00023807,2]
[315487956,1709076294171,-200.0,0.00023807,2]
[315487957,1709076294193,-1150.2032463,0.00023824,2]
[315487958,1709076294213,-197.44456234,0.00023825,2]
[315487959,1709076294235,-555.5555555,0.00023833,3]
[315487960,1709076294256,-555.5555555,0.00023833,3]
[315487961,1709076294277,-555.5555555,0.00023833,3]
[315487962,1709076294301,-555.5555555,0.00023833,3]
[315487963,1709076294328,-555.5555555,0.00023833,3]
[315487964,1709076294350,-555.5555555,0.00023833,3]
[315487965,1709076294374,-555.5555555,0.00023833,3]
[315487966,1709076294397,-555.5555555,0.00023833,3]
[315487967,1709076294420,-555.5555555,0.00023833,3]
[315487968,1709076294444,-555.5555555,0.00023833,3]
[315487969,1709076294466,-555.5555555,0.00023833,3]
[315487970,1709076294488,-555.5555555,0.00023833,3]
[315487971,1709076294509,-555.5555555,0.00023833,3]
[315487972,1709076294531,-555.5555555,0.00023833,3]
[315487973,1709076294552,-157.47,0.00023833,2]
[315487974,1709076294573,-260.77723429,0.00023834,2]
[315487975,1709076294593,-193.86263835,0.00023834,2]
[315487976,1709076294616,-58506.70766058,0.00023835,4]
[315487977,1709076294636,-502.54105057,0.00023835,2]
[315487978,1709076294656,-503.90985214,0.00023835,2]
[315487979,1709076294676,-504.58451338,0.00023835,2]
[315487980,1709076294697,-503.97457371,0.00023835,2]
[315487981,1709076294717,-580.07368676,0.00023835,2]
[315487982,1709076294738,-500.0,0.00023835,2]
[315487983,1709076294758,-302.57853885,0.00023835,2]
[315487984,1709076294778,-508.13799586,0.00023835,2]
[315487985,1709076294798,-500.0,0.00023835,2]
[315487986,1709076294817,-508.08247494,0.00023835,2]
[315487987,1709076294837,-500.0,0.00023835,2]
[315487988,1709076294857,-343.11882267,0.00023835,2]
[315487989,1709076294877,-500.0,0.00023835,2]
[315487990,1709076294897,-500.0,0.00023835,2]
[315487991,1709076294917,-500.0,0.00023835,2]
[315487992,1709076294937,-500.0,0.00023835,2]
[315487993,1709076294958,-564.9988682,0.00023835,2]
[315487994,1709076294978,-514.08098621,0.00023835,2]
[315487995,1709076294998,-500.0,0.00023835,2]
[315487996,1709076295018,-500.0,0.00023835,2]
[315487997,1709076295038,-500.0,0.00023835,2]
[315487998,1709076295058,-500.0,0.00023835,2]
[315487999,1709076295078,-513.1717839,0.00023835,2]
[315488000,1709076295098,-500.0,0.00023835,2]
[315488001,1709076295119,-500.0,0.00023835,2]
[315488002,1709076295142,-500.0,0.00023835,2]
[315488003,1709076295165,-525.95485031,0.00023835,2]
[315488004,1709076295188,-501.44610929,0.00023835,2]
[315488005,1709076295209,-415.56061521,0.00023835,2]
[315488006,1709076295230,-500.0,0.00023835,2]
[315488007,1709076295251,-500.0,0.00023835,2]
[315488008,1709076295272,-500.0,0.00023835,2]
[315488009,1709076295296,-500.0,0.00023835,2]
[315488010,1709076295317,-500.0,0.00023835,2]
[315488011,1709076295339,-500.0,0.00023835,2]
[315488012,1709076295367,-481.67,0.00023835,2]
[315488013,1709076295388,-500.0,0.00023835,2]
[315488014,1709076295409,-291.04589118,0.00023835,2]
[315488015,1709076295431,-500.0,0.00023835,2]
[315488016,1709076295452,-500.0,0.00023835,2]
[315488017,1709076295473,-587.56244515,0.00023835,2]
[315488018,1709076295493,-500.0,0.00023835,2]
[315488019,1709076295513,-500.0,0.00023835,2]
[315488020,1709076295533,-500.0,0.00023835,2]
[315488021,1709076295553,-500.0,0.00023835,2]
[315488022,1709076295573,-2000.0,0.00023835,2]
[315488023,1709076295769,-500.0,0.00023835,2]
[315488024,1709076295790,-500.0,0.00023835,2]
[315488025,1709076295811,-500.0,0.00023835,2]
[315488026,1709076295832,-500.0,0.00023835,2]
[315488027,1709076295855,-500.0,0.00023835,2]
[315488028,1709076295877,-500.0,0.00023835,2]
[315488029,1709076295899,-500.0,0.00023835,2]
[315488030,1709076295921,-200.0,0.00023835,2]
[315488031,1709076295944,-486.29319485,0.00023835,2]
[315488032,1709076295964,-500.0,0.00023835,2]
[315488033,1709076295985,-500.0,0.00023835,2]
[315488034,1709076296006,-588.45380223,0.00023835,2]
[315488035,1709076296028,-500.0,0.00023835,2]
[315488036,1709076296050,-500.0,0.00023835,2]
[315488037,1709076296071,-500.0,0.00023835,2]
[315488038,1709076296091,-500.0,0.00023835,2]
[315488039,1709076296111,-500.0,0.00023835,2]
[315488040,1709076296132,-500.0,0.00023835,2]
[315488041,1709076296153,-500.0,0.00023835,2]
[315488042,1709076296173,-500.0,0.00023835,2]
[315488043,1709076296195,-500.0,0.00023835,2]
[315488044,1709076296219,-500.0,0.00023835,2]
[315488045,1709076296243,-500.0,0.00023835,2]
[315488046,1709076296265,-500.0,0.00023835,2]
[315488047,1709076296289,-296.05,0.00023835,2]
[315488048,1709076296311,-373.54873404,0.00023835,2]
[315488049,1709076296335,-500.0,0.00023835,2]
[315488050,1709076296357,-500.0,0.00023835,2]
[315488051,1709076296382,-500.0,0.00023835,2]
[315488052,1709076296402,-500.0,0.00023835,2]
[315488053,1709076296421,-500.0,0.00023835,2]
[315488054,1709076296442,-500.0,0.00023835,2]
[315488055,1709076296462,-500.0,0.00023835,2]
[315488056,1709076296482,-500.0,0.00023835,2]
[315488057,1709076296502,-500.0,0.00023835,2]
[315488058,1709076296523,-500.0,0.00023835,2]
[315488059,1709076296543,-500.0,0.00023835,2]
[315488060,1709076296563,-500.0,0.00023835,2]
[315488061,1709076296584,-500.0,0.00023835,2]
[315488062,1709076296603,-500.0,0.00023835,2]
[315488063,1709076296623,-500.0,0.00023835,2]
[315488064,1709076296643,-500.0,0.00023835,2]
[315488065,1709076296663,-500.0,0.00023835,2]
[315488066,1709076296683,-501.53935581,0.00023835,2]
[315488067,1709076296704,-500.0,0.00023835,2]
[315488068,1709076296725,-500.0,0.00023835,2]
[315488069,1709076296745,-500.0,0.00023835,2]
[315488070,1709076296766,-590.57,0.00023835,2]
[315488071,1709076296787,-500.0,0.00023835,2]
[315488072,1709076296807,-500.0,0.00023835,2]
[315488073,1709076296826,-500.0,0.00023835,2]
[315488074,1709076296846,-500.0,0.00023835,2]
[315488075,1709076296866,-554.39,0.00023835,2]
[315488076,1709076296886,-500.0,0.00023835,2]
[315488077,1709076296906,-500.0,0.00023835,2]
[315488078,1709076296927,-500.0,0.00023835,2]
[315488079,1709076296948,-500.0,0.00023835,2]
[315488080,1709076296968,-500.0,0.00023835,2]
[315488081,1709076296987,-500.0,0.00023835,2]
[315488082,1709076297008,-500.0,0.00023835,2]
[315488083,1709076297027,-500.0,0.00023835,2]
[315488084,1709076297049,-500.0,0.00023835,2]
[315488085,1709076297069,-500.0,0.00023835,2]
[315488086,1709076297089,-500.0,0.00023835,2]
[315488087,1709076297108,-500.0,0.00023835,2]
[315488088,1709076297129,-500.0,0.00023835,2]
[315488089,1709076297149,-500.0,0.00023835,2]
[315488090,1709076297169,-500.0,0.00023835,2]
[315488091,1709076297189,-500.0,0.00023835,2]
[315488092,1709076297210,-500.0,0.00023835,2]
[315488093,1709076297230,-500.0,0.00023835,2]
[315488094,1709076297250,-500.0,0.00023835,2]
[315488095,1709076297270,-500.0,0.00023835,2]
[315488096,1709076297295,-544.04343593,0.00023835,2]
[315488097,1709076297317,-500.0,0.00023835,2]
[315488098,1709076297338,-500.0,0.00023835,2]
[315488099,1709076297360,-500.0,0.00023835,2]
[315488100,1709076297382,-500.0,0.00023835,2]
[315488101,1709076297402,-570.94572286,0.00023835,2]
[315488102,1709076297423,-509.60861112,0.00023835,2]
[315488103,1709076297445,-504.74239416,0.00023835,2]
[315488104,1709076297466,-500.0,0.00023835,2]
[315488105,1709076297487,-500.0,0.00023835,2]
[315488106,1709076297507,-500.0,0.00023835,2]
[315488107,1709076297528,-217.92671306,0.00023835,2]
[315488108,1709076297548,-500.0,0.00023835,2]
[315488109,1709076297567,-500.0,0.00023835,2]
[315488110,1709076297588,-500.0,0.00023835,2]
[315488111,1709076297608,-500.0,0.00023835,2]
[315488112,1709076297629,-500.0,0.00023835,2]
[315488113,1709076297657,-500.0,0.00023835,2]
[315488114,1709076297680,-500.0,0.00023835,2]
[315488115,1709076297703,-500.0,0.00023835,2]
[315488116,1709076297725,-514.35950409,0.00023835,2]
[315488117,1709076297746,-279.4741419,0.00023835,2]
[315488118,1709076297767,-166.0,0.00023835,2]
[315488119,1709076297788,-500.0,0.00023835,2]
[315488120,1709076297809,-500.0,0.00023835,2]
[315488121,1709076297829,-500.0,0.00023835,2]
[315488122,1709076297849,-500.0,0.00023835,2]
[315488123,1709076297870,-500.0,0.00023835,2]
[315488124,1709076297891,-500.0,0.00023835,2]
[315488125,1709076297912,-500.0,0.00023835,2]
[315488126,1709076297931,-500.0,0.00023835,2]
[315488127,1709076297955,-500.0,0.00023835,2]
[315488128,1709076297976,-500.0,0.00023835,2]
[315488129,1709076297996,-500.0,0.00023835,2]
[315488130,1709076298016,-500.0,0.00023835,2]
[315488131,1709076298036,-500.0,0.00023835,2]
[315488132,1709076298056,-500.0,0.00023835,2]
[315488133,1709076298076,-500.0,0.00023835,2]
[315488134,1709076298097,-500.0,0.00023835,2]
[315488135,1709076298120,-500.0,0.00023835,2]
[315488136,1709076298143,-500.0,0.00023835,2]
[315488137,1709076298166,-500.0,0.00023835,2]
[315488138,1709076298211,-500.0,0.00023835,2]
[315488139,1709076298232,-500.0,0.00023835,2]
[315488140,1709076298255,-500.0,0.00023835,2]
[315488141,1709076298279,-500.0,0.00023835,2]
[315488142,1709076298300,-500.0,0.00023835,2]
[315488143,1709076298320,-500.0,0.00023835,2]
[315488144,1709076298341,-500.0,0.00023835,2]
[315488145,1709076298363,-500.0,0.00023835,2]
[315488146,1709076298384,-500.0,0.00023835,2]
[315488147,1709076298405,-500.0,0.00023835,2]